[Event "Titled Tuesday Blitz July 05 Late 2022"]
[White "Rosen, Eric"]
[Black "Voege, Tobias"]
[WhiteFideId "2032562"]
[BlackFideId "1270513"]
[WhiteElo "2362"]
[BlackElo "2379"]
[Result "1-0"]
[Round "03"]
[TimeControl "180+1"]
[Date "2022.07.06"]
[WhiteClock "0:00:10"]
[BlackClock "0:00:13"]

1. d4 {[%clk 0:02:53]}  Nf6 {[%clk 0:02:58]} 2. Bf4 {[%clk 0:02:52]}  g6 {[%clk 0:02:55]} 3. Nc3 {[%clk 0:02:52]}  d5 {[%clk 0:02:55]} 4. e3 {[%clk 0:02:52]}  Bg7 {[%clk 0:02:55]} 5. h4 {[%clk 0:02:52]}  h5 {[%clk 0:02:55]} 6. Nf3 {[%clk 0:02:52]}  c5 {[%clk 0:02:55]} 7. Nb5 {[%clk 0:02:51]}  Na6 {[%clk 0:02:55]} 8. a4 {[%clk 0:02:48]}  O-O {[%clk 0:02:54]} 9. c3 {[%clk 0:02:48]}  Bg4 {[%clk 0:02:47]} 10. Be2 {[%clk 0:02:47]}  Ne4 {[%clk 0:02:38]} 11. O-O {[%clk 0:02:45]}  c4 {[%clk 0:02:24]} 12. b3 {[%clk 0:02:29]}  cxb3 {[%clk 0:02:18]} 13. Qxb3 {[%clk 0:02:29]}  Bxf3 {[%clk 0:02:18]} 14. Bxf3 {[%clk 0:02:26]}  Nd2 {[%clk 0:02:18]} 15. Qxd5 {[%clk 0:02:26]}  Nxf1 {[%clk 0:02:14]} 16. Rxf1 {[%clk 0:02:20]}  e5 {[%clk 0:01:51]} 17. dxe5 {[%clk 0:01:59]}  Qxd5 {[%clk 0:01:47]} 18. Bxd5 {[%clk 0:01:59]}  Nc5 {[%clk 0:01:38]} 19. Nd6 {[%clk 0:01:27]}  Rad8 {[%clk 0:00:42]} 20. c4 {[%clk 0:01:16]}  b6 {[%clk 0:00:33]} 21. Bg3 {[%clk 0:01:04]}  Rd7 {[%clk 0:00:26]} 22. Ra1 {[%clk 0:00:57]}  Kh7 {[%clk 0:00:19]} 23. Ra3 {[%clk 0:00:51]}  Re7 {[%clk 0:00:18]} 24. f4 {[%clk 0:00:51]}  f6 {[%clk 0:00:17]} 25. exf6 {[%clk 0:00:32]}  Bxf6 {[%clk 0:00:18]} 26. e4 {[%clk 0:00:30]}  Bb2 {[%clk 0:00:18]} 27. Ra2 {[%clk 0:00:27]}  Bd4+ {[%clk 0:00:18]} 28. Kh2 {[%clk 0:00:28]}  Be3 {[%clk 0:00:19]} 29. f5 {[%clk 0:00:25]}  g5 {[%clk 0:00:19]} 30. Re2 {[%clk 0:00:21]}  Bf4 {[%clk 0:00:15]} 31. hxg5 {[%clk 0:00:20]}  Bxg5 {[%clk 0:00:14]} 32. e5 {[%clk 0:00:21]}  Nd3 {[%clk 0:00:13]} 33. Be4 {[%clk 0:00:15]}  Nf4 {[%clk 0:00:13]} 34. f6+ {[%clk 0:00:15]}  Kg8 {[%clk 0:00:12]} 35. fxe7 {[%clk 0:00:13]}  Bxe7 {[%clk 0:00:11]} 36. Rf2 {[%clk 0:00:11]}  Ng6 {[%clk 0:00:09]} 37. Bxg6 {[%clk 0:00:10]}  Rxf2 {[%clk 0:00:09]} 38. Bxf2 {[%clk 0:00:11]}  h4 {[%clk 0:00:09]} 39. Nf5 {[%clk 0:00:10]}  Bb4 {[%clk 0:00:09]} 40. e6 {[%clk 0:00:10]}  a5 {[%clk 0:00:09]} 41. Bd4 {[%clk 0:00:10]}  b5 {[%clk 0:00:09]} 42. cxb5 {[%clk 0:00:10]}  h3 {[%clk 0:00:10]} 43. Kxh3 {[%clk 0:00:10]}  Be7 {[%clk 0:00:10]} 44. Nxe7+ {[%clk 0:00:09]}  Kf8 {[%clk 0:00:11]} 45. Nf5 {[%clk 0:00:09]}  Kg8 {[%clk 0:00:12]} 46. b6 {[%clk 0:00:09]}  Kf8 {[%clk 0:00:12]} 47. b7 {[%clk 0:00:10]}  Kg8 {[%clk 0:00:13]} 48. b8=Q# {[%clk 0:00:10]} 1-0


[Site "https://www.chess.com"]

[Event "Titled Tuesday Blitz July 05 Late 2022"]
[White "Samsonkin, Artiom"]
[Black "Shuvalova, Polina"]
[WhiteFideId "13503111"]
[BlackFideId "24171760"]
[WhiteElo "2513"]
[BlackElo "2330"]
[Result "1/2-1/2"]
[Round "03"]
[TimeControl "180+1"]
[Date "2022.07.05"]
[WhiteClock "0:00:08"]
[BlackClock "0:00:10"]

1. d4 {[%clk 0:02:45]}  Nf6 {[%clk 0:02:57]} 2. Bf4 {[%clk 0:02:44]}  c5 {[%clk 0:02:56]} 3. e3 {[%clk 0:02:40]}  cxd4 {[%clk 0:02:56]} 4. exd4 {[%clk 0:02:40]}  d5 {[%clk 0:02:56]} 5. Nc3 {[%clk 0:02:36]}  Nc6 {[%clk 0:02:57]} 6. Nb5 {[%clk 0:02:33]}  Kd7 {[%clk 0:02:06]} 7. Bc7 {[%clk 0:02:13]}  Qe8 {[%clk 0:02:06]} 8. Bg3 {[%clk 0:02:04]}  Qd8 {[%clk 0:02:03]} 9. Nf3 {[%clk 0:02:01]}  e6 {[%clk 0:02:03]} 10. Ne5+ {[%clk 0:01:25]}  Nxe5 {[%clk 0:02:02]} 11. Bxe5 {[%clk 0:01:26]}  a6 {[%clk 0:02:00]} 12. Nc3 {[%clk 0:00:57]}  Bb4 {[%clk 0:02:00]} 13. a3 {[%clk 0:00:55]}  Bxc3+ {[%clk 0:02:00]} 14. bxc3 {[%clk 0:00:56]}  Ke7 {[%clk 0:02:00]} 15. Bd3 {[%clk 0:00:55]}  b6 {[%clk 0:01:58]} 16. O-O {[%clk 0:00:55]}  a5 {[%clk 0:01:58]} 17. f4 {[%clk 0:00:55]}  Ba6 {[%clk 0:01:56]} 18. Bxa6 {[%clk 0:00:49]}  Rxa6 {[%clk 0:01:56]} 19. f5 {[%clk 0:00:50]}  Ra8 {[%clk 0:01:45]} 20. Rb1 {[%clk 0:00:49]}  Rg8 {[%clk 0:01:40]} 21. Qf3 {[%clk 0:00:40]}  Rf8 {[%clk 0:01:31]} 22. Qg3 {[%clk 0:00:38]}  Rg8 {[%clk 0:01:09]} 23. Bc7 {[%clk 0:00:30]}  Qd7 {[%clk 0:01:09]} 24. Rxb6 {[%clk 0:00:27]}  Rac8 {[%clk 0:01:09]} 25. Be5 {[%clk 0:00:26]}  Ne4 {[%clk 0:01:03]} 26. Qh4+ {[%clk 0:00:16]}  f6 {[%clk 0:00:56]} 27. Rxe6+ {[%clk 0:00:13]}  Kf8 {[%clk 0:00:56]} 28. Bf4 {[%clk 0:00:13]}  Rxc3 {[%clk 0:00:54]} 29. Rb1 {[%clk 0:00:13]}  Rc8 {[%clk 0:00:53]} 30. Qxh7 {[%clk 0:00:12]}  Rxc2 {[%clk 0:00:47]} 31. h3 {[%clk 0:00:12]}  Rc8 {[%clk 0:00:41]} 32. Qg6 {[%clk 0:00:12]}  a4 {[%clk 0:00:41]} 33. Kh2 {[%clk 0:00:09]}  Rh8 {[%clk 0:00:41]} 34. Rbb6 {[%clk 0:00:06]}  Qa7 {[%clk 0:00:37]} 35. Rxe4 {[%clk 0:00:04]}  dxe4 {[%clk 0:00:35]} 36. Bd6+ {[%clk 0:00:03]}  Kg8 {[%clk 0:00:34]} 37. Rb5 {[%clk 0:00:02]}  Qf7 {[%clk 0:00:32]} 38. Qg4 {[%clk 0:00:01]}  Re8 {[%clk 0:00:32]} 39. Bf4 {[%clk 0:00:01]}  e3 {[%clk 0:00:32]} 40. Rb1 {[%clk 0:00:02]}  e2 {[%clk 0:00:31]} 41. Re1 {[%clk 0:00:03]}  Qe7 {[%clk 0:00:32]} 42. d5 {[%clk 0:00:03]}  Qxa3 {[%clk 0:00:24]} 43. d6 {[%clk 0:00:04]}  Qb4 {[%clk 0:00:24]} 44. d7 {[%clk 0:00:03]}  Rd8 {[%clk 0:00:24]} 45. Rxe2 {[%clk 0:00:04]}  Qb5 {[%clk 0:00:16]} 46. Re7 {[%clk 0:00:03]}  Rh7 {[%clk 0:00:15]} 47. Qg6 {[%clk 0:00:03]}  Rf8 {[%clk 0:00:04]} 48. Qe8 {[%clk 0:00:02]}  Qb6 {[%clk 0:00:01]} 49. Qxf8+ {[%clk 0:00:01]}  Kxf8 {[%clk 0:00:02]} 50. Re8+ {[%clk 0:00:02]}  Kf7 {[%clk 0:00:02]} 51. d8=Q {[%clk 0:00:03]}  Qxd8 {[%clk 0:00:03]} 52. Rxd8 {[%clk 0:00:04]}  Rh4 {[%clk 0:00:03]} 53. Re8 {[%clk 0:00:04]}  Rxf4 {[%clk 0:00:03]} 54. Ra8 {[%clk 0:00:04]}  Rb4 {[%clk 0:00:03]} 55. Ra7+ {[%clk 0:00:05]}  Kg8 {[%clk 0:00:03]} 56. h4 {[%clk 0:00:05]}  Rxh4+ {[%clk 0:00:03]} 57. Kg3 {[%clk 0:00:06]}  Rb4 {[%clk 0:00:04]} 58. Kh3 {[%clk 0:00:06]}  Rb3+ {[%clk 0:00:04]} 59. Kh4 {[%clk 0:00:06]}  a3 {[%clk 0:00:04]} 60. g4 {[%clk 0:00:06]}  Kh7 {[%clk 0:00:04]} 61. Ra6 {[%clk 0:00:06]}  Rb4 {[%clk 0:00:04]} 62. Rxa3 {[%clk 0:00:06]}  Rd4 {[%clk 0:00:05]} 63. Ra7 {[%clk 0:00:06]}  Re4 {[%clk 0:00:05]} 64. Rb7 {[%clk 0:00:06]}  Rc4 {[%clk 0:00:06]} 65. Rd7 {[%clk 0:00:06]}  Rb4 {[%clk 0:00:06]} 66. Rd1 {[%clk 0:00:06]}  Kh6 {[%clk 0:00:06]} 67. Rd8 {[%clk 0:00:06]}  Kh7 {[%clk 0:00:06]} 68. Rd3 {[%clk 0:00:07]}  Rb1 {[%clk 0:00:06]} 69. Kg3 {[%clk 0:00:07]}  Rg1+ {[%clk 0:00:06]} 70. Kf4 {[%clk 0:00:08]}  Re1 {[%clk 0:00:06]} 71. Rh3+ {[%clk 0:00:07]}  Kg8 {[%clk 0:00:07]} 72. Rd3 {[%clk 0:00:08]}  Rf1+ {[%clk 0:00:07]} 73. Ke4 {[%clk 0:00:08]}  Kh7 {[%clk 0:00:07]} 74. Rh3+ {[%clk 0:00:07]}  Kg8 {[%clk 0:00:07]} 75. Kd5 {[%clk 0:00:07]}  Rg1 {[%clk 0:00:08]} 76. Rh4 {[%clk 0:00:07]}  Re1 {[%clk 0:00:08]} 77. Kd4 {[%clk 0:00:07]}  Kf7 {[%clk 0:00:09]} 78. Kd3 {[%clk 0:00:07]}  Re5 {[%clk 0:00:09]} 79. Kd4 {[%clk 0:00:08]}  Re1 {[%clk 0:00:09]} 80. Kd3 {[%clk 0:00:08]}  Ke7 {[%clk 0:00:10]} 81. Rh7 {[%clk 0:00:08]}  Kf8 {[%clk 0:00:10]} 82. Rh8+ {[%clk 0:00:08]}  Kf7 {[%clk 0:00:10]} 83. Rh4 {[%clk 0:00:08]} 1/2-1/2


[Site "https://www.chess.com"]

[Event "Titled Tuesday Blitz July 05 Late 2022"]
[White "Saveliev, Alexei"]
[Black "Roman, Rodrigo"]
[WhiteFideId "24128546"]
[BlackFideId "3701220"]
[WhiteElo "2281"]
[BlackElo "2001"]
[Result "0-1"]
[Round "03"]
[TimeControl "180+1"]
[Date "2022.07.06"]
[WhiteClock "0:00:02"]
[BlackClock "0:00:08"]

1. c4 {[%clk 0:03:00]}  e5 {[%clk 0:02:58]} 2. Nc3 {[%clk 0:03:01]}  Nc6 {[%clk 0:02:26]} 3. Nf3 {[%clk 0:03:01]}  Nf6 {[%clk 0:02:22]} 4. e3 {[%clk 0:03:01]}  Be7 {[%clk 0:02:19]} 5. d4 {[%clk 0:03:00]}  exd4 {[%clk 0:02:19]} 6. exd4 {[%clk 0:03:01]}  d5 {[%clk 0:02:20]} 7. cxd5 {[%clk 0:03:01]}  Nxd5 {[%clk 0:02:20]} 8. Bc4 {[%clk 0:02:57]}  Be6 {[%clk 0:02:20]} 9. Bb3 {[%clk 0:02:53]}  O-O {[%clk 0:02:19]} 10. O-O {[%clk 0:02:53]}  Bf6 {[%clk 0:02:09]} 11. Re1 {[%clk 0:02:48]}  Nxc3 {[%clk 0:02:08]} 12. bxc3 {[%clk 0:02:49]}  Bd5 {[%clk 0:02:09]} 13. Bf4 {[%clk 0:02:41]}  Na5 {[%clk 0:02:03]} 14. Bxd5 {[%clk 0:02:33]}  Qxd5 {[%clk 0:02:03]} 15. Bxc7 {[%clk 0:02:34]}  Nc4 {[%clk 0:02:04]} 16. Bg3 {[%clk 0:02:26]}  Rac8 {[%clk 0:02:03]} 17. Qb3 {[%clk 0:02:25]}  b5 {[%clk 0:02:03]} 18. a4 {[%clk 0:02:23]}  a6 {[%clk 0:02:03]} 19. axb5 {[%clk 0:02:23]}  axb5 {[%clk 0:02:02]} 20. Rab1 {[%clk 0:02:17]}  Qa8 {[%clk 0:01:51]} 21. h4 {[%clk 0:02:02]}  Rfd8 {[%clk 0:01:49]} 22. Re2 {[%clk 0:01:56]}  h6 {[%clk 0:01:46]} 23. Ne5 {[%clk 0:01:51]}  Nxe5 {[%clk 0:01:45]} 24. Bxe5 {[%clk 0:01:51]}  Bxh4 {[%clk 0:01:39]} 25. Re3 {[%clk 0:01:35]}  Rd5 {[%clk 0:01:34]} 26. Rbe1 {[%clk 0:01:29]}  Qc6 {[%clk 0:01:31]} 27. Qa2 {[%clk 0:01:15]}  Ra8 {[%clk 0:01:29]} 28. Qb1 {[%clk 0:01:13]}  Bg5 {[%clk 0:01:26]} 29. Rf3 {[%clk 0:01:08]}  g6 {[%clk 0:01:03]} 30. Bg3 {[%clk 0:01:03]}  f5 {[%clk 0:01:01]} 31. Be5 {[%clk 0:00:59]}  Be7 {[%clk 0:00:50]} 32. Rg3 {[%clk 0:00:50]}  Kh7 {[%clk 0:00:48]} 33. Qd3 {[%clk 0:00:38]}  Rc8 {[%clk 0:00:42]} 34. Rge3 {[%clk 0:00:35]}  Bg5 {[%clk 0:00:42]} 35. Rh3 {[%clk 0:00:33]}  Re8 {[%clk 0:00:37]} 36. Qb1 {[%clk 0:00:29]}  Qc4 {[%clk 0:00:35]} 37. Bf4 {[%clk 0:00:19]}  Rxe1+ {[%clk 0:00:21]} 38. Qxe1 {[%clk 0:00:20]}  Bxf4 {[%clk 0:00:21]} 39. Qe7+ {[%clk 0:00:20]}  Kg8 {[%clk 0:00:21]} 40. Qe8+ {[%clk 0:00:18]}  Kg7 {[%clk 0:00:21]} 41. Qe7+ {[%clk 0:00:18]}  Kg8 {[%clk 0:00:22]} 42. Qe6+ {[%clk 0:00:18]}  Kf8 {[%clk 0:00:18]} 43. Qxg6 {[%clk 0:00:16]}  Bg5 {[%clk 0:00:16]} 44. Rf3 {[%clk 0:00:12]}  Qe2 {[%clk 0:00:11]} 45. Qc6 {[%clk 0:00:04]}  Qe1+ {[%clk 0:00:11]} 46. Kh2 {[%clk 0:00:04]}  Qe4 {[%clk 0:00:07]} 47. Qc8+ {[%clk 0:00:02]}  Kf7 {[%clk 0:00:07]} 48. Qc7+ {[%clk 0:00:02]}  Kg6 {[%clk 0:00:08]} 0-1


[Site "https://www.chess.com"]

[Event "Titled Tuesday Blitz July 05 Late 2022"]
[White "Schekachikhin, Maksim"]
[Black "Abdrlauf, Elham"]
[WhiteFideId "24177830"]
[BlackFideId "1533533"]
[WhiteElo "2239"]
[BlackElo "2429"]
[Result "0-1"]
[Round "03"]
[TimeControl "180+1"]
[Date "2022.07.05"]
[WhiteClock "0:00:05"]
[BlackClock "0:00:06"]

1. b3 {[%clk 0:03:00]}  e5 {[%clk 0:02:59]} 2. Bb2 {[%clk 0:03:00]}  Nc6 {[%clk 0:03:00]} 3. c4 {[%clk 0:03:00]}  Nf6 {[%clk 0:02:59]} 4. Nf3 {[%clk 0:03:00]}  e4 {[%clk 0:02:57]} 5. Nd4 {[%clk 0:03:00]}  Bc5 {[%clk 0:02:52]} 6. Nf5 {[%clk 0:02:55]}  O-O {[%clk 0:02:52]} 7. e3 {[%clk 0:02:49]}  d5 {[%clk 0:02:51]} 8. cxd5 {[%clk 0:02:48]}  Nb4 {[%clk 0:02:39]} 9. Ng3 {[%clk 0:02:46]}  Re8 {[%clk 0:02:10]} 10. a3 {[%clk 0:02:40]}  Nd3+ {[%clk 0:01:44]} 11. Bxd3 {[%clk 0:02:40]}  exd3 {[%clk 0:01:45]} 12. b4 {[%clk 0:02:37]}  Bf8 {[%clk 0:01:40]} 13. Bxf6 {[%clk 0:02:22]}  Qxf6 {[%clk 0:01:41]} 14. Nc3 {[%clk 0:02:23]}  a5 {[%clk 0:01:29]} 15. b5 {[%clk 0:02:21]}  c6 {[%clk 0:01:16]} 16. dxc6 {[%clk 0:02:17]}  bxc6 {[%clk 0:01:17]} 17. bxc6 {[%clk 0:02:14]}  Qxc6 {[%clk 0:01:17]} 18. O-O {[%clk 0:02:13]}  Bb7 {[%clk 0:01:17]} 19. f3 {[%clk 0:02:12]}  a4 {[%clk 0:01:10]} 20. Qb1 {[%clk 0:01:49]}  Ba6 {[%clk 0:01:10]} 21. Rc1 {[%clk 0:01:49]}  Rab8 {[%clk 0:01:10]} 22. Qa2 {[%clk 0:01:44]}  Bc4 {[%clk 0:00:58]} 23. Nxa4 {[%clk 0:01:43]}  Rec8 {[%clk 0:00:56]} 24. Rxc4 {[%clk 0:01:35]}  Qxc4 {[%clk 0:00:57]} 25. Nc3 {[%clk 0:01:29]}  Rb3 {[%clk 0:00:39]} 26. a4 {[%clk 0:01:00]}  Bb4 {[%clk 0:00:18]} 27. Nb5 {[%clk 0:00:56]}  Qc2 {[%clk 0:00:08]} 28. Nd4 {[%clk 0:00:51]}  Qxa2 {[%clk 0:00:02]} 29. Rxa2 {[%clk 0:00:51]}  Rb1+ {[%clk 0:00:02]} 30. Kf2 {[%clk 0:00:51]}  Rd1 {[%clk 0:00:01]} 31. Ne4 {[%clk 0:00:40]}  Rcc1 {[%clk 0:00:01]} 32. a5 {[%clk 0:00:27]}  f5 {[%clk 0:00:02]} 33. a6 {[%clk 0:00:15]}  fxe4 {[%clk 0:00:03]} 34. a7 {[%clk 0:00:15]}  Rc8 {[%clk 0:00:04]} 35. a8=Q {[%clk 0:00:14]}  Rxa8 {[%clk 0:00:05]} 36. Rxa8+ {[%clk 0:00:14]}  Kf7 {[%clk 0:00:06]} 37. fxe4 {[%clk 0:00:13]}  Rxd2+ {[%clk 0:00:06]} 38. Kf3 {[%clk 0:00:13]}  Rd1 {[%clk 0:00:06]} 39. Nb3 {[%clk 0:00:10]}  Rb1 {[%clk 0:00:05]} 40. Rd8 {[%clk 0:00:05]}  Rxb3 {[%clk 0:00:06]} 41. e5 {[%clk 0:00:05]}  d2 {[%clk 0:00:06]} 42. Ke2 {[%clk 0:00:05]}  Rb1 {[%clk 0:00:06]} 0-1


[Site "https://www.chess.com"]

[Event "Titled Tuesday Blitz July 05 Late 2022"]
[White "Tari, Aryan"]
[Black "Makarian, Rudik"]
[WhiteFideId "1510045"]
[BlackFideId "44105681"]
[WhiteElo "2612"]
[BlackElo "2403"]
[Result "0-1"]
[Round "03"]
[TimeControl "180+1"]
[Date "2022.07.05"]
[WhiteClock "0:00:59"]
[BlackClock "0:01:25"]

1. Nf3 {[%clk 0:02:58]}  Nf6 {[%clk 0:02:59]} 2. c4 {[%clk 0:02:56]}  g6 {[%clk 0:02:58]} 3. Nc3 {[%clk 0:02:56]}  Bg7 {[%clk 0:02:58]} 4. e4 {[%clk 0:02:56]}  d6 {[%clk 0:02:59]} 5. d4 {[%clk 0:02:56]}  O-O {[%clk 0:02:59]} 6. Be2 {[%clk 0:02:49]}  e5 {[%clk 0:02:59]} 7. d5 {[%clk 0:02:49]}  Na6 {[%clk 0:02:56]} 8. Nd2 {[%clk 0:02:37]}  Nd7 {[%clk 0:02:31]} 9. Rb1 {[%clk 0:02:37]}  f5 {[%clk 0:02:29]} 10. b4 {[%clk 0:02:36]}  Nf6 {[%clk 0:02:26]} 11. O-O {[%clk 0:02:24]}  Kh8 {[%clk 0:01:53]} 12. Ba3 {[%clk 0:02:20]}  b6 {[%clk 0:01:47]} 13. f3 {[%clk 0:02:10]}  Bh6 {[%clk 0:01:45]} 14. Kh1 {[%clk 0:02:09]}  Be3 {[%clk 0:01:39]} 15. Nb3 {[%clk 0:02:09]}  f4 {[%clk 0:01:34]} 16. c5 {[%clk 0:01:41]}  Nh5 {[%clk 0:01:32]} 17. Qe1 {[%clk 0:01:42]}  Ng3+ {[%clk 0:01:24]} 18. hxg3 {[%clk 0:01:42]}  Qg5 {[%clk 0:01:25]} 19. Rf2 {[%clk 0:01:03]}  fxg3 {[%clk 0:01:24]} 20. Nd1 {[%clk 0:00:59]}  Qh4+ {[%clk 0:01:23]} 21. Kg1 {[%clk 0:00:59]}  Qh2+ {[%clk 0:01:24]} 22. Kf1 {[%clk 0:00:59]}  Qh1# {[%clk 0:01:25]} 0-1


[Site "https://www.chess.com"]

[Event "Titled Tuesday Blitz July 05 Late 2022"]
[White "Tatarinov, Dmitry"]
[Black "Prestige_17355"]
[WhiteFideId "24160067"]
[WhiteElo "2302"]
[BlackElo "2413"]
[Result "1-0"]
[Round "03"]
[TimeControl "180+1"]
[Date "2022.07.06"]
[WhiteClock "0:00:13"]
[BlackClock "0:00:03"]

1. e4 {[%clk 0:03:00]}  e5 {[%clk 0:02:55]} 2. Nf3 {[%clk 0:03:00]}  Nc6 {[%clk 0:02:55]} 3. Nc3 {[%clk 0:03:01]}  Nf6 {[%clk 0:02:54]} 4. d4 {[%clk 0:03:02]}  exd4 {[%clk 0:02:55]} 5. Nxd4 {[%clk 0:03:02]}  Bb4 {[%clk 0:02:55]} 6. Nxc6 {[%clk 0:03:03]}  bxc6 {[%clk 0:02:56]} 7. Bd3 {[%clk 0:03:03]}  d5 {[%clk 0:02:57]} 8. exd5 {[%clk 0:03:03]}  O-O {[%clk 0:02:57]} 9. O-O {[%clk 0:03:03]}  cxd5 {[%clk 0:02:58]} 10. Bg5 {[%clk 0:03:02]}  c6 {[%clk 0:02:58]} 11. Qf3 {[%clk 0:03:02]}  Bd6 {[%clk 0:02:58]} 12. Rae1 {[%clk 0:02:59]}  Rb8 {[%clk 0:02:56]} 13. Nd1 {[%clk 0:02:58]}  Be6 {[%clk 0:02:42]} 14. b3 {[%clk 0:02:44]}  Re8 {[%clk 0:02:36]} 15. Ne3 {[%clk 0:02:43]}  h6 {[%clk 0:02:31]} 16. Bxf6 {[%clk 0:02:41]}  Qxf6 {[%clk 0:02:31]} 17. Qxf6 {[%clk 0:02:41]}  gxf6 {[%clk 0:02:31]} 18. Nf5 {[%clk 0:02:42]}  Bxf5 {[%clk 0:02:29]} 19. Bxf5 {[%clk 0:02:42]}  Re5 {[%clk 0:02:22]} 20. Bd7 {[%clk 0:02:28]}  c5 {[%clk 0:02:18]} 21. g3 {[%clk 0:02:28]}  Rd8 {[%clk 0:02:14]} 22. Bc6 {[%clk 0:02:25]}  d4 {[%clk 0:02:11]} 23. Bb5 {[%clk 0:02:23]}  Rb8 {[%clk 0:02:06]} 24. a4 {[%clk 0:02:20]}  Kf8 {[%clk 0:01:56]} 25. f4 {[%clk 0:02:18]}  Re7 {[%clk 0:01:52]} 26. Kg2 {[%clk 0:02:17]}  Rbb7 {[%clk 0:01:50]} 27. Rd1 {[%clk 0:02:13]}  Re3 {[%clk 0:01:49]} 28. Kh3 {[%clk 0:02:10]}  Rbe7 {[%clk 0:01:48]} 29. Kg4 {[%clk 0:02:10]}  Bc7 {[%clk 0:01:44]} 30. Kf5 {[%clk 0:02:02]}  Kg7 {[%clk 0:01:43]} 31. Bc4 {[%clk 0:01:59]}  Ba5 {[%clk 0:01:40]} 32. Kg4 {[%clk 0:01:58]}  Bc3 {[%clk 0:01:31]} 33. Bd3 {[%clk 0:01:53]}  a5 {[%clk 0:01:30]} 34. Rf2 {[%clk 0:01:44]}  Re1 {[%clk 0:01:15]} 35. Rxe1 {[%clk 0:01:38]}  Rxe1 {[%clk 0:01:16]} 36. Kf5 {[%clk 0:01:38]}  Re3 {[%clk 0:01:13]} 37. Rg2 {[%clk 0:01:29]}  Be1 {[%clk 0:01:12]} 38. Rg1 {[%clk 0:01:18]}  Bc3 {[%clk 0:01:10]} 39. g4 {[%clk 0:01:15]}  Bd2 {[%clk 0:01:02]} 40. g5 {[%clk 0:01:05]}  fxg5 {[%clk 0:01:01]} 41. fxg5 {[%clk 0:01:05]}  h5 {[%clk 0:00:54]} 42. g6 {[%clk 0:01:03]}  Rf3+ {[%clk 0:00:50]} 43. Ke4 {[%clk 0:01:03]}  Rf4+ {[%clk 0:00:49]} 44. Kd5 {[%clk 0:01:02]}  Bb4 {[%clk 0:00:41]} 45. Kc4 {[%clk 0:01:02]}  h4 {[%clk 0:00:36]} 46. gxf7+ {[%clk 0:00:54]}  Kxf7 {[%clk 0:00:36]} 47. Rg5 {[%clk 0:00:52]}  Kf6 {[%clk 0:00:36]} 48. Rh5 {[%clk 0:00:52]}  Ba3 {[%clk 0:00:34]} 49. Rh6+ {[%clk 0:00:50]}  Kg5 {[%clk 0:00:34]} 50. Rg6+ {[%clk 0:00:50]}  Kh5 {[%clk 0:00:34]} 51. Ra6 {[%clk 0:00:49]}  Bb4 {[%clk 0:00:34]} 52. h3 {[%clk 0:00:48]}  Rf8 {[%clk 0:00:26]} 53. Kd5 {[%clk 0:00:48]}  Rd8+ {[%clk 0:00:24]} 54. Ke6 {[%clk 0:00:46]}  Rf8 {[%clk 0:00:24]} 55. Ra7 {[%clk 0:00:44]}  Kg5 {[%clk 0:00:22]} 56. Rh7 {[%clk 0:00:44]}  Be1 {[%clk 0:00:19]} 57. Kd5 {[%clk 0:00:43]}  Bb4 {[%clk 0:00:16]} 58. Rg7+ {[%clk 0:00:43]}  Kh5 {[%clk 0:00:15]} 59. Be2+ {[%clk 0:00:38]}  Kh6 {[%clk 0:00:15]} 60. Rg4 {[%clk 0:00:38]}  Rf2 {[%clk 0:00:15]} 61. Rxh4+ {[%clk 0:00:37]}  Kg5 {[%clk 0:00:16]} 62. Rg4+ {[%clk 0:00:37]}  Kf5 {[%clk 0:00:17]} 63. Bd3+ {[%clk 0:00:37]}  Kf6 {[%clk 0:00:16]} 64. Rg6+ {[%clk 0:00:38]}  Kf7 {[%clk 0:00:16]} 65. Rh6 {[%clk 0:00:36]}  Rh2 {[%clk 0:00:17]} 66. Rh7+ {[%clk 0:00:35]}  Kf6 {[%clk 0:00:17]} 67. h4 {[%clk 0:00:35]}  Rh3 {[%clk 0:00:17]} 68. h5 {[%clk 0:00:35]}  Kg5 {[%clk 0:00:17]} 69. Bg6 {[%clk 0:00:34]}  Rh2 {[%clk 0:00:17]} 70. Rf7 {[%clk 0:00:31]}  Kh6 {[%clk 0:00:17]} 71. Ke6 {[%clk 0:00:25]}  Re2+ {[%clk 0:00:16]} 72. Kd5 {[%clk 0:00:24]}  Rh2 {[%clk 0:00:16]} 73. Rh7+ {[%clk 0:00:24]}  Kg5 {[%clk 0:00:15]} 74. Ke6 {[%clk 0:00:19]}  Re2+ {[%clk 0:00:15]} 75. Kf7 {[%clk 0:00:20]}  Rf2+ {[%clk 0:00:12]} 76. Kg7 {[%clk 0:00:20]}  Bc3 {[%clk 0:00:12]} 77. Bd3 {[%clk 0:00:20]}  Rh2 {[%clk 0:00:09]} 78. h6 {[%clk 0:00:20]}  Bd2 {[%clk 0:00:09]} 79. Rh8 {[%clk 0:00:20]}  Bf4 {[%clk 0:00:05]} 80. Rg8 {[%clk 0:00:13]}  Be5+ {[%clk 0:00:03]} 81. Kf7+ {[%clk 0:00:14]}  Kxh6 {[%clk 0:00:03]} 82. Rg6+ {[%clk 0:00:14]}  Kh5 {[%clk 0:00:03]} 83. Ra6 {[%clk 0:00:15]}  Bf4 {[%clk 0:00:03]} 84. Rxa5 {[%clk 0:00:15]}  Bd6 {[%clk 0:00:03]} 85. Ke6 {[%clk 0:00:15]}  Bf8 {[%clk 0:00:04]} 86. Ra8 {[%clk 0:00:14]}  Rf2 {[%clk 0:00:04]} 87. a5 {[%clk 0:00:13]}  Kg5 {[%clk 0:00:05]} 88. a6 {[%clk 0:00:13]}  Bg7 {[%clk 0:00:03]} 89. a7 {[%clk 0:00:13]}  Rg2 {[%clk 0:00:03]} 1-0


[Site "https://www.chess.com"]